bitfinex/quotes_SOLUSD_20260119
["timestamp","ask_amount","ask_price","bid_price","bid_amount"]
[1768833029375,1.50587786,133.59,133.56,11.22020455]
[1768833030788,1.50587786,133.59,133.56,10.50078029]
[1768833031392,1.50587786,133.59,133.56,7.48723649]
[1768833031701,1.50587786,133.58,133.55,11.22077489]
[1768833035714,1.50587786,133.58,133.55,8.20723109]
[1768833035905,1.50587786,133.58,133.55,11.22077489]
[1768833037994,1.50587786,133.58,133.55,8.20723109]
[1768833038307,1.50587786,133.58,133.55,11.22077489]
[1768833045295,1.50587786,133.58,133.55,8.20723109]
[1768833045493,1.50479406,133.59,133.56,3.73343943]
[1768833045690,0.1,133.61,133.59,0.71989563]
[1768833045897,1.60479406,133.61,133.59,3.0135438]
[1768833046428,1.60479406,133.61,133.58,3.73343943]
[1768833047213,1.60479406,133.61,133.59,3.0135438]
[1768833049711,0.1,133.61,133.6,3.0135438]
[1768833053415,0.1,133.61,133.59,8.20542003]
[1768833053717,0.1,133.61,133.59,11.21896383]
[1768833054517,0.1,133.61,133.59,8.20542003]
[1768833054821,0.1,133.61,133.59,11.21896383]
[1768833059007,1.47679264,133.63,133.6,3.73374396]
[1768833059217,1.47679264,133.63,133.61,3.0135438]
[1768833060418,1.47679264,133.64,133.61,3.73378358]
[1768833060926,1.47679264,133.64,133.61,3.0135438]
[1768833061130,1.47679264,133.63,133.6,0.72023978]
[1768833061428,1.47679264,133.63,133.61,3.0135438]
[1768833064731,1.47679264,133.63,133.6,8.20526128]
[1768833064955,1.47679264,133.63,133.61,3.0135438]
[1768833065226,1.47679264,133.62,133.56,81.3179038]
[1768833065433,1.47679264,133.61,133.57,3.0135438]
[1768833066320,1.47679264,133.61,133.57,10.4999168]
[1768833066521,1.47679264,133.61,133.57,11.22027009]
[1768833067124,1.47679264,133.61,133.58,3.0135438]
[1768833068937,1.47679264,133.61,133.58,10.49965837]
[1768833071420,1.47679264,133.61,133.58,7.48611457]
[1768833072040,1.47679264,133.61,133.58,11.22010043]
[1768833073038,1.47679264,133.61,133.58,11.2196113]
[1768833074838,1.47679264,133.61,133.58,7.48611457]
[1768833075023,1.47679264,133.61,133.58,10.49916924]
[1768833076539,1.47679264,133.61,133.58,7.48611457]
[1768833076731,1.47679264,133.61,133.58,8.20664042]
[1768833076933,1.47679264,133.61,133.58,11.21969509]
[1768833077436,1.47679264,133.61,133.59,3.01305467]
[1768833077645,1.47679264,133.63,133.59,3.7335967]
[1768833078134,1.47679264,133.63,133.6,3.01305467]
[1768833078633,1.47679264,133.63,133.6,10.49797628]
[1768833079419,1.47679264,133.63,133.6,3.01305467]
[1768833079619,1.47679264,133.63,133.59,11.21893279]
[1768833083723,1.47679264,133.63,133.6,0.72065024]
[1768833084031,1.44824836,133.64,133.61,3.73370491]
[1768833084341,1.54824836,133.65,133.62,3.73371966]
[1768833084728,1.54824836,133.65,133.62,3.01305467]
[1768833085538,1.54824836,133.65,133.62,3.73373425]
[1768833085745,0.1,133.65,133.63,3.73373425]
[1768833086043,0.1,133.66,133.64,0.72067958]
[1768833086242,1.54824836,133.66,133.63,0.720694]
[1768833086444,1.54824836,133.66,133.64,3.01305467]
[1768833087125,1.54824836,133.66,133.63,0.720694]
[1768833087462,1.54824836,133.66,133.64,3.01305467]
[1768833088134,0.1,133.66,133.64,3.01305467]
[1768833088335,0.1,133.66,133.64,10.49570447]
[1768833088637,0.1,133.66,133.64,7.4826498]
[1768833088847,0.1,133.66,133.64,10.49570447]
[1768833089252,1.54824836,133.66,133.64,7.4826498]
[1768833089451,1.54824836,133.66,133.64,10.49570447]
[1768833092151,1.54824836,133.66,133.64,3.01305467]
[1768833093543,1.54824836,133.66,133.63,8.20379901]
[1768833093749,1.54824836,133.66,133.64,3.01305467]
[1768833095741,1.54824836,133.66,133.65,3.01305467]
[1768833095948,1.54824836,133.66,133.64,7.4827381]
[1768833095949,1.54824836,133.66,133.64,3.01305467]
[1768833096655,1.54824836,133.66,133.63,8.20381641]
[1768833096953,1.54824836,133.66,133.64,3.01305467]
[1768833098038,1.54824836,133.67,133.65,3.01305467]
[1768833099254,0.1,133.67,133.66,3.01305467]
[1768833099644,1.44824836,133.68,133.67,3.01305467]
[1768833099839,1.68922504,133.69,133.67,3.01305467]
[1768833100156,0.1,133.7,133.68,11.21447667]
[1768833100337,1.68922504,133.71,133.69,3.01305467]
[1768833100538,1.68922504,133.71,133.7,3.01305467]
[1768833101230,1.58922504,133.7,133.67,3.01305467]
[1768833101431,1.58922504,133.69,133.65,3.01305467]
[1768833101631,1.58922504,133.69,133.66,3.01305467]
[1768833104759,1.58922504,133.68,133.65,7.48202149]
[1768833104947,1.58922504,133.68,133.65,10.49507616]
[1768833107249,1.58922504,133.68,133.66,3.01305467]
[1768833108654,1.58922504,133.7,133.66,3.73403821]
[1768833109335,1.58922504,133.69,133.66,11.21565067]
[1768833109761,1.68922504,133.71,133.67,3.73404914]
[1768833110057,3.01305467,133.7,133.65,8.20284018]
[1768833110231,1.58922504,133.69,133.65,8.20284018]
[1768833110436,1.58922504,133.69,133.64,8.20361682]
[1768833110639,1.58922504,133.69,133.65,10.49520889]
[1768833110846,1.58922504,133.69,133.65,7.48215422]
[1768833111045,1.58922504,133.69,133.65,10.49520889]
[1768833112760,1.58922504,133.69,133.65,11.21624583]
[1768833113561,1.54371237,133.7,133.67,0.72104725]
[1768833113735,1.64371237,133.71,133.68,3.73410192]
[1768833115375,1.64371237,133.72,133.68,0.72106753]
[1768833115670,1.64371237,133.72,133.69,3.01305467]
[1768833115846,1.64371237,133.72,133.68,10.49350736]
[1768833116445,7.57833389,133.72,133.68,10.49350736]
[1768833116669,1.54371237,133.71,133.68,10.49350736]
[1768833117166,1.54371237,133.71,133.68,3.01305467]
[1768833117367,1.54371237,133.71,133.67,3.01305467]
[1768833118458,1.54371237,133.71,133.67,10.49411879]
[1768833121476,1.54371237,133.7,133.67,10.49411879]
[1768833121686,1.54371237,133.7,133.67,7.48106412]
[1768833122083,1.54371237,133.71,133.68,3.73418028]
[1768833122656,1.54371237,133.71,133.68,0.72112561]
[1768833123081,1.54371237,133.71,133.67,8.20219903]
[1768833123265,1.54371237,133.71,133.67,11.2152537]
[1768833124456,1.64371237,133.72,133.69,3.01305467]
[1768833124662,0.1,133.72,133.7,3.01305467]
[1768833124863,1.64371237,133.72,133.69,3.01305467]
[1768833125062,1.64371237,133.72,133.69,3.73420785]
[1768833125264,1.64371237,133.72,133.7,3.01305467]
[1768833125553,1.64371237,133.74,133.71,3.73421683]
[1768833125765,1.64371237,133.74,133.7,0.72116216]
[1768833126077,1.64371237,133.74,133.71,3.01305467]
[1768833126780,0.1,133.74,133.72,0.72117103]
[1768833127074,0.1,133.75,133.73,3.01305467]
[1768833127581,1.64371237,133.75,133.73,3.01305467]
[1768833128073,1.64371237,133.75,133.74,3.73423448]
[1768833128074,0.1,133.75,133.74,3.73423448]
[1768833128278,0.1,133.75,133.73,0.72117981]
[1768833128478,1.64371237,133.77,133.74,3.01305467]
[1768833128667,1.64371237,133.77,133.75,3.01305467]
[1768833129056,0.1,133.77,133.75,3.01305467]
[1768833129261,1.64371237,133.77,133.74,3.73424315]
[1768833129991,1.64371237,133.77,133.75,3.01305467]
[1768833130363,0.1,133.77,133.75,3.01305467]
[1768833131182,0.1,133.77,133.73,8.1987797]
[1768833131183,1.64371237,133.77,133.73,8.1987797]
[1768833131368,1.64371237,133.77,133.74,3.01305467]
[1768833132085,1.64371237,133.77,133.73,8.1987797]
[1768833132385,1.64371237,133.77,133.74,3.01305467]
[1768833133387,1.64371237,133.77,133.73,8.1987797]
[1768833133889,1.64371237,133.77,133.74,3.01305467]
[1768833134478,1.54371237,133.76,133.71,7.47877784]
[1768833134676,1.54371237,133.75,133.71,7.47877784]
[1768833134873,1.54371237,133.75,133.71,3.00713317]
[1768833135078,1.54371237,133.75,133.71,7.47882492]
[1768833135386,1.54371237,133.75,133.71,10.48595809]
[1768833135772,1.54371237,133.75,133.71,7.47882492]
[1768833137295,1.54371237,133.74,133.69,0.86342376]
[1768833137598,1.54371237,133.73,133.69,3.00713317]
[1768833138186,1.54371237,133.73,133.68,8.20154948]
[1768833138378,1.54371237,133.73,133.69,3.00713317]
[1768833138575,1.54371237,133.72,133.69,3.00713317]
[1768833138878,1.54371237,133.72,133.68,8.20154948]
[1768833138879,1.54371237,133.72,133.68,11.20868265]
[1768833141673,1.54371237,133.72,133.69,3.00713317]
[1768833146402,1.54371237,133.72,133.69,10.48709345]
[1768833146799,1.51695303,133.73,133.7,0.72133558]
[1768833146976,1.51695303,133.74,133.71,3.72846875]
[1768833147377,1.61695303,133.77,133.74,0.72134247]
[1768833147602,1.61695303,133.77,133.74,3.72847564]
[1768833147897,9.09264835,133.77,133.74,0.72134247]
[1768833148103,1.51695303,133.76,133.73,3.00713317]
[1768833148477,1.51695303,133.76,133.72,8.19931575]
[1768833148989,1.51695303,133.76,133.73,3.00713317]
[1768833149488,1.51695303,133.75,133.73,3.00713317]
[1768833149694,1.51695303,133.75,133.72,3.00713317]
[1768833150693,1.51695303,133.75,133.7,8.20063236]
[1768833150884,1.51695303,133.75,133.7,11.20776553]
[1768833151697,1.51695303,133.74,133.7,10.48640288]
[1768833151902,1.51695303,133.73,133.69,8.20128633]
[1768833152205,1.51695303,133.73,133.69,3.00713317]
[1768833152509,1.51695303,133.71,133.65,0.72137572]
[1768833152679,1.51695303,133.7,133.66,10.48874892]
[1768833155391,1.51695303,133.69,133.65,3.00713317]
[1768833155600,1.51695303,133.68,133.64,10.48961701]
[1768833155902,1.51695303,133.68,133.63,8.20450591]
[1768833156107,1.51695303,133.67,133.63,11.21163908]
[1768833156486,1.51695303,133.67,133.63,0.72139476]
[1768833156688,1.51695303,133.67,133.63,8.20464904]
[1768833157104,1.51695303,133.67,133.63,11.21178221]
[1768833157308,1.51695303,133.66,133.61,8.20564629]
[1768833157509,1.51695303,133.66,133.62,3.00713317]
[1768833157706,1.51695303,133.66,133.62,3.72854027]
[1768833157900,1.51695303,133.66,133.62,11.21244287]
[1768833158212,1.51695303,133.65,133.62,0.7214071]
[1768833158514,1.51695303,133.65,133.62,8.20530378]
[1768833158804,7.48177381,133.66,133.62,8.20530378]
[1768833159207,10.48890698,133.66,133.62,0.7214071]
[1768833159414,10.48890698,133.66,133.61,4.51222617]
[1768833159802,10.48890698,133.66,133.61,1.505093]
[1768833160114,10.48890698,133.66,133.61,8.98951111]
[1768833160606,1.49169686,133.65,133.61,8.98951111]
[1768833160807,4.43883004,133.65,133.61,8.98951111]
[1768833161412,1.43169687,133.65,133.61,11.99664428]
[1768833162402,1.43169687,133.65,133.61,8.98951111]
[1768833162903,1.43169687,133.65,133.61,11.99664428]
[1768833163110,1.43169687,133.65,133.61,8.98951111]
[1768833164198,7.48177381,133.66,133.62,4.47163527]
[1768833164387,1.49169686,133.68,133.64,4.47163527]
[1768833164793,1.49169686,133.68,133.65,1.4645021]
[1768833166017,1.49169686,133.68,133.65,4.47163527]
[1768833166417,1.49169686,133.68,133.65,3.00713317]
[1768833166597,8.97228936,133.68,133.64,4.47163527]
[1768833170400,1.49169686,133.7,133.67,4.47163527]
[1768833170721,1.49169686,133.7,133.68,3.00713317]
[1768833171801,1.49169686,133.7,133.67,4.47163527]
[1768833172195,1.49169686,133.69,133.66,4.47163527]
[1768833172424,1.49169686,133.68,133.64,4.47163527]
[1768833172799,1.49169686,133.68,133.64,11.954412]
[1768833172999,1.49169686,133.68,133.64,8.94727883]
[1768833173511,1.49169686,133.68,133.64,11.954412]
[1768833175118,1.49169686,133.68,133.66,3.00713317]
[1768833175318,16.38,133.69,133.66,4.50654299]
[1768833175518,16.38,133.69,133.67,3.00713317]
[1768833175816,1.57358187,133.69,133.66,4.50654299]
[1768833176222,1.57358187,133.69,133.66,3.00713317]
[1768833176603,1.57358187,133.69,133.65,4.50654299]
[1768833176802,1.57358187,133.69,133.64,3.00713317]
[1768833177004,1.57358187,133.69,133.64,4.50654299]
[1768833177706,1.57358187,133.68,133.64,4.50654299]
[1768833178318,1.57358187,133.68,133.64,11.98921865]
[1768833180627,1.45358189,133.68,133.64,11.98921865]
[1768833181227,8.934174,133.68,133.64,11.98921865]
[1768833181528,8.934174,133.68,133.63,1.49940982]
[1768833181529,16.38,133.67,133.63,1.49940982]
[1768833181733,16.38,133.67,133.63,4.50654299]
[1768833182110,16.38,133.67,133.63,11.98985336]
[1768833182724,17.95358187,133.67,133.63,11.98985336]
[1768833187217,17.89358188,133.67,133.63,11.98985336]
[1768833187924,1.57358187,133.66,133.63,11.98985336]
[1768833188126,1.51358188,133.66,133.63,11.98985336]
[1768833189917,16.32000001,133.67,133.64,1.49940982]
[1768833190213,17.89358188,133.67,133.64,1.49940982]
[1768833190836,17.89358188,133.67,133.64,0.49940982]
[1768833191047,17.89358188,133.67,133.63,10.49044354]
[1768833191542,1.57358187,133.68,133.65,7.4822297]
[1768833191731,1.57358187,133.68,133.65,10.48936287]
[1768833192248,1.57358187,133.68,133.65,7.4822297]
[1768833192931,1.57358187,133.68,133.64,8.9727805]
[1768833193243,1.57358187,133.67,133.63,7.48322043]
[1768833193924,1.57358187,133.66,133.63,7.48322043]
[1768833194721,1.57358187,133.71,133.66,1.49099746]
[1768833195024,1.57358187,133.71,133.67,3.00846623]
[1768833195228,1.57358187,133.71,133.66,1.49099746]
[1768833195524,1.57358187,133.71,133.66,4.49946369]
[1768833195719,1.57358187,133.71,133.66,3.00846623]
[1768833195923,1.57358187,133.7,133.66,3.00846623]
[1768833196325,1.57358187,133.7,133.66,10.49013338]
[1768833197954,1.57358187,133.7,133.66,3.00846623]
[1768833198333,7.47948802,133.7,133.66,3.00846623]
[1768833198527,1.57358187,133.69,133.66,3.00846623]
[1768833198725,1.57358187,133.69,133.67,3.00846623]
[1768833198942,1.57358187,133.69,133.66,3.00846623]
[1768833201860,1.57358187,133.69,133.65,8.97334767]
[1768833202027,1.57358187,133.69,133.66,3.00846623]
[1768833203060,1.57358187,133.69,133.65,8.97334767]
[1768833203231,1.57358187,133.69,133.66,3.00846623]
[1768833203965,1.55197397,133.68,133.64,62.6]
[1768833204144,1.55197397,133.67,133.63,3.00846623]
[1768833204749,1.55197397,133.67,133.62,8.95977013]
[1768833205062,1.55197397,133.66,133.63,4.48464981]
[1768833206061,1.55197397,133.66,133.63,1.47618358]
[1768833208175,1.55197397,133.65,133.62,7.48358655]
[1768833208472,1.49197398,133.65,133.61,11.96893088]
[1768833209576,1.49197398,133.65,133.61,8.96046465]
[1768833210868,1.55197397,133.64,133.6,8.96094395]
[1768833211645,1.55197397,133.63,133.6,1.47618358]
[1768833211969,1.55197397,133.63,133.59,74.57001735]
[1768833212161,1.55197397,133.63,133.59,8.96155112]
[1768833212361,1.55197397,133.63,133.59,11.97001735]
[1768833213762,1.55197397,133.63,133.59,8.96155112]
[1768833213945,1.55197397,133.63,133.59,11.97001735]
[1768833214964,1.49197398,133.63,133.59,11.97001735]
[1768833217571,8.97537178,133.63,133.59,1.47618358]
[1768833218050,1.55197397,133.62,133.59,1.47618358]
[1768833218670,9.035976,133.62,133.58,71.56206838]
[1768833218970,1.55197397,133.61,133.57,11.97110904]
[1768833219872,1.55197397,133.61,133.57,12.03899166]
[1768833220067,1.55197397,133.61,133.57,1.5440662]
[1768833220864,1.55197397,133.61,133.57,9.03074671]
[1768833222358,1.54124061,133.6,133.57,9.03074671]
[1768833226266,1.54124061,133.6,133.57,12.03921294]
[1768833226465,1.48124062,133.6,133.57,9.03074671]
[1768833226764,1.48124062,133.6,133.57,12.03921294]
[1768833229780,1.48124062,133.6,133.57,9.03074671]
[1768833229959,1.48124062,133.6,133.57,12.03921294]
[1768833231383,18.70655422,133.65,133.59,4.55253243]
[1768833231560,1.54124061,133.63,133.6,1.5440662]
[1768833231963,1.54124061,133.63,133.59,4.55253243]
[1768833232173,3.00846623,133.63,133.58,12.03864758]
[1768833232380,1.54124061,133.62,133.58,12.03864758]
[1768833232872,1.5072787,133.61,133.58,1.5440662]
[1768833233985,8.99188571,133.61,133.58,1.5440662]
[1768833234783,1.5072787,133.6,133.57,10.49512948]
[1768833234984,1.5072787,133.6,133.57,1.47303718]
[1768833235689,1.5072787,133.6,133.56,64.07303718]
[1768833236266,8.99243773,133.6,133.56,64.07303718]
[1768833236686,8.99243773,133.6,133.57,1.47303718]
[1768833237577,1.5072787,133.6,133.57,1.47303718]
[1768833240288,8.99232886,133.6,133.57,1.47303718]
[1768833240490,1.5072787,133.59,133.56,8.96028934]
[1768833240688,1.5072787,133.59,133.56,1.47303718]
[1768833241190,1.5072787,133.59,133.56,8.96026522]
[1768833241980,1.5072787,133.6,133.57,1.47303718]
[1768833242987,8.99231337,133.6,133.57,1.47303718]
[1768833247094,8.99231337,133.6,133.55,10.69609622]
[1768833247294,1.5072787,133.59,133.55,12.1691334]
[1768833247681,1.5072787,133.59,133.56,1.47303718]
[1768833249579,8.99180664,133.61,133.57,1.47303718]
[1768833249784,1.5072787,133.61,133.58,1.47303718]
[1768833250973,16.4,133.64,133.6,4.48150341]
[1768833251173,1.5072787,133.63,133.6,4.48150341]
[1768833251414,1.5072787,133.63,133.6,1.47303718]
[1768833251981,1.5072787,133.63,133.6,4.48150341]
[1768833252308,1.5072787,133.64,133.61,1.47303718]
[1768833253380,1.5072787,133.65,133.62,1.47303718]
[1768833254101,1.5072787,133.65,133.61,1.47303718]
[1768833254889,1.5072787,133.65,133.61,8.95742039]
[1768833256503,1.5072787,133.64,133.61,1.47303718]
[1768833258393,1.5072787,133.64,133.6,11.96973403]
[1768833258893,1.5072787,133.63,133.59,11.97026402]
[1768833259499,1.5072787,133.63,133.6,8.95802657]
[1768833263702,1.5072787,133.63,133.6,11.96989845]
[1768833265514,1.47481793,133.65,133.61,4.51381949]
[1768833265815,1.47481793,133.64,133.6,1.50194761]
[1768833265996,1.47481793,133.64,133.6,11.99874459]
[1768833267292,1.47481793,133.64,133.6,3.01187188]
[1768833268412,1.47481793,133.63,133.6,3.01187188]
[1768833269707,1.47481793,133.63,133.6,1.50194761]
[1768833269907,1.47481793,133.63,133.6,4.51381949]
[1768833270116,1.47481793,133.63,133.6,11.99879113]
[1768833271687,1.47481793,133.66,133.63,1.50194761]
[1768833271891,1.47481793,133.66,133.63,4.51381949]
[1768833272397,1.47481793,133.68,133.64,4.51381949]
[1768833272597,1.47481793,133.68,133.65,3.01187188]
[1768833273104,1.47481793,133.68,133.64,1.50194761]
[1768833273286,1.47481793,133.68,133.65,3.01187188]
[1768833273490,1.47481793,133.68,133.64,11.99636314]
[1768833274595,1.47481793,133.68,133.65,10.49409298]
[1768833276112,25.35452299,133.7,133.66,4.51381949]
[1768833276299,1.47481793,133.69,133.66,4.51381949]
[1768833276615,1.47481793,133.69,133.66,3.01187188]
[1768833281715,1.5717081,133.68,133.65,1.50194761]
[1768833282022,1.5717081,133.68,133.65,4.51381949]
[1768833285011,1.5717081,133.67,133.63,12.02207221]
[1768833285205,1.5717081,133.67,133.64,7.48269094]
[1768833285696,1.5717081,133.66,133.62,1.52712426]
[1768833285900,1.5717081,133.66,133.62,9.01074119]
[1768833286117,1.5717081,133.66,133.62,12.02261307]
[1768833287317,1.5717081,133.65,133.61,3.01187188]
[1768833287525,1.5717081,133.65,133.6,12.02367767]
[1768833287820,1.5717081,133.64,133.6,12.02367767]
[1768833288021,1.5717081,133.64,133.6,9.01180579]
[1768833288207,1.5717081,133.64,133.6,12.02367767]
[1768833288406,1.5717081,133.64,133.6,9.01180579]
[1768833288706,1.5717081,133.64,133.6,12.02367767]
[1768833289014,1.5717081,133.64,133.6,9.01180579]
[1768833289200,1.5717081,133.64,133.6,12.02367767]
[1768833290022,1.5717081,133.64,133.6,9.01180579]
[1768833290228,1.5717081,133.64,133.6,12.02367767]
[1768833290929,1.5717081,133.64,133.6,9.01180579]
[1768833291128,1.5717081,133.63,133.6,4.53899614]
[1768833291324,1.5717081,133.63,133.59,12.02448109]
[1768833292023,1.5717081,133.63,133.6,3.01187188]
[1768833293222,1.5717081,133.63,133.6,10.49687429]
[1768833294026,1.5717081,133.63,133.6,12.07565467]
[1768833296051,1.5717081,133.63,133.6,4.59065226]
[1768833297825,1.5717081,133.63,133.6,12.07566901]
[1768833303619,1.5717081,133.63,133.6,10.49688863]
[1768833303816,1.5717081,133.63,133.6,12.07566901]
[1768833306041,8.97915713,133.65,133.61,1.57878038]
[1768833306426,1.49666827,133.64,133.61,1.57878038]
[1768833307726,1.49666827,133.64,133.61,12.07512016]
[1768833308632,1.49666827,133.65,133.62,1.57878038]
[1768833310643,1.49666827,133.65,133.62,4.59065226]
[1768833313244,1.49666827,133.65,133.62,1.57878038]
[1768833313734,1.49666827,133.65,133.62,12.07454811]
[1768833315446,1.49666827,133.65,133.62,4.59065226]
[1768833318146,1.49666827,133.64,133.61,9.06294967]
[1768833318533,1.49666827,133.64,133.61,12.07482155]
[1768833319146,1.49666827,133.64,133.61,12.07442636]
[1768833319442,1.49666827,133.64,133.61,7.48416929]
[1768833319748,1.49666827,133.64,133.61,10.49564598]
[1768833320172,1.49666827,133.64,133.61,12.07442636]
[1768833339866,1.49666827,133.64,133.62,10.49533119]
[1768833340563,1.52326225,133.65,133.62,12.1387576]
[1768833340869,35.09942867,133.7,133.65,1.64342641]
[1768833341058,26.18024131,133.69,133.63,1.64342641]
[1768833341273,3.01147669,133.67,133.62,64.24342641]
[1768833341457,3.01147669,133.67,133.62,1.64342641]
[1768833341846,10.49314659,133.66,133.6,9.12841484]
[1768833342052,10.49314659,133.66,133.6,12.13989153]
[1768833342363,7.4816699,133.66,133.6,9.12841484]
[1768833342569,3.01147669,133.65,133.6,9.12837793]
[1768833342869,1.52326225,133.63,133.6,1.64342641]
[1768833343059,1.52326225,133.63,133.59,9.12890343]
[1768833343271,1.52326225,133.63,133.59,12.14038012]
[1768833344264,1.52326225,133.63,133.58,62.6]
[1768833344448,3.01147669,133.6,133.56,6.98751497]
[1768833344644,1.52326225,133.59,133.56,12.141791]
[1768833345042,1.52326225,133.59,133.56,9.13031431]
[1768833345546,1.52326225,133.59,133.57,7.48660043]
[1768833346070,1.52326225,133.59,133.56,9.13048734]
[1768833347956,1.52326225,133.59,133.56,12.14196403]
[1768833351259,1.52326225,133.59,133.57,4.6549031]
[1768833351755,1.52326225,133.59,133.57,1.64342641]
[1768833355877,1.52326225,133.59,133.56,4.6454412]
[1768833356084,1.52326225,133.59,133.56,1.63396451]
[1768833356775,1.54089154,133.58,133.55,62.8]
[1768833356982,1.54089154,133.57,133.55,0.2]
[1768833360675,1.54089154,133.56,133.53,1.63396451]
[1768833363882,1.54089154,133.56,133.53,9.12285745]
[1768833365601,1.54089154,133.56,133.53,1.63396451]
[1768833366072,1.54089154,133.55,133.52,1.83396451]
[1768833366275,1.24479822,133.55,133.52,1.83396451]
[1768833366683,1.24479822,133.55,133.52,0.2]
[1768833366873,23.88730981,133.56,133.52,0.2]
[1768833367077,3.01147669,133.54,133.52,0.2]
[1768833367564,10.49990871,133.54,133.52,0.2]
[1768833367986,10.43990872,133.54,133.52,0.2]
[1768833368187,1.54089154,133.53,133.52,0.2]
[1768833368365,1.48089155,133.53,133.52,0.2]
[1768833370390,1.42089156,133.53,133.52,0.2]
[1768833370593,1.36089157,133.53,133.52,0.2]
[1768833373472,1.36089157,133.53,133.49,7.69090941]
[1768833373784,1.36089157,133.53,133.49,12.33635061]
[1768833374374,1.36089157,133.53,133.5,1.63396451]
[1768833376993,9.02932356,133.54,133.51,1.63396451]
[1768833377498,17.94089154,133.55,133.52,1.63396451]
[1768833377796,17.94089154,133.55,133.52,4.6454412]
[1768833378090,1.54089154,133.55,133.52,4.6454412]
[1768833378296,1.54089154,133.53,133.5,9.12456484]
[1768833378476,1.48089155,133.53,133.5,1.63396451]
[1768833378798,1.48089155,133.53,133.5,4.6454412]
[1768833379508,1.48089155,133.53,133.5,1.63396451]
[1768833379671,10.50043173,133.53,133.49,0.2]
[1768833379982,3.01147669,133.52,133.49,0.2]
[1768833380385,1.54089154,133.52,133.49,0.2]
[1768833380585,1.54089154,133.51,133.49,0.2]
[1768833381394,4.55876887,133.51,133.49,0.2]
[1768833381595,12.04917934,133.51,133.49,0.2]
[1768833381794,9.03130201,133.51,133.49,0.2]
[1768833382189,1.54089154,133.5,133.49,0.2]
[1768833382990,1.5161704,133.49,133.46,1.86416696]
[1768833384195,1.5161704,133.48,133.46,0.2]
[1768833384400,1.45617041,133.48,133.46,0.2]
[1768833384775,1.39617042,133.48,133.46,0.2]
[1768833387713,1.39617042,133.48,133.45,1.86416696]
[1768833387714,1.5161704,133.46,133.44,0.2]
[1768833387895,3.01787733,133.45,133.44,0.2]
[1768833388790,4.53404773,133.46,133.44,0.2]
[1768833389297,12.02695646,133.46,133.44,0.2]
[1768833391413,1.5161704,133.44,133.4,0.2]
[1768833391586,1.34224089,133.43,133.4,1.86416696]
[1768833392511,4.36011822,133.43,133.4,1.86416696]
[1768833392713,16.4,133.45,133.4,0.2]
[1768833392714,4.36162757,133.42,133.4,0.2]
[1768833393010,1.34375024,133.42,133.4,0.2]
[1768833393386,8.83888437,133.42,133.4,0.2]
[1768833394187,11.8567617,133.42,133.4,1e-08]
[1768833394491,4.36516507,133.41,133.4,1e-08]
[1768833394803,1.34728774,133.41,133.4,1e-08]
[1768833395007,4.36516507,133.41,133.4,1e-08]
[1768833395725,1.34902607,133.4,133.35,0.2]
[1768833395887,3.9669034,133.38,133.35,0.2]
[1768833396091,0.94902607,133.38,133.35,0.2]
[1768833396308,0.95074444,133.37,133.35,0.2]
[1768833396814,3.01787733,133.37,133.34,0.2]
[1768833397009,0.75074444,133.36,133.34,0.2]
[1768833397391,3.77052952,133.37,133.34,0.2]
[1768833397789,0.75265219,133.36,133.34,0.2]
[1768833397999,11.26893892,133.37,133.34,0.2]
[1768833399113,7.4972024,133.39,133.35,1.66416696]
[1768833399304,16.42,133.39,133.35,1.66416696]
[1768833399614,17.17640222,133.39,133.35,1.66416696]
[1768833399910,17.11640223,133.39,133.36,1.60490056]
[1768833400118,18.73988495,133.41,133.37,1.60490056]
[1768833400119,17.17824498,133.41,133.37,1.60490056]
[1768833400502,0.76006659,133.4,133.37,1.60490056]
[1768833400825,8.25580811,133.41,133.37,4.62277789]
[1768833401900,24.67707278,133.42,133.38,1.60490056]
[1768833402204,3.01787733,133.46,133.41,1.60490056]
[1768833402396,16.42,133.47,133.43,1.60490056]
[1768833402800,19.43787733,133.47,133.43,1.60490056]
[1768833403007,20.20121684,133.47,133.43,1.60490056]
[1768833403205,3.78274221,133.46,133.39,1.60490056]
[1768833403417,0.76486488,133.46,133.42,1.60490056]
[1768833403915,17.18486488,133.47,133.43,1.60490056]
[1768833404092,24.67727887,133.47,133.43,1.60490056]
[1768833405813,16.42,133.47,133.44,1.60490056]
[1768833405994,16.42,133.47,133.45,1.60490056]
[1768833406915,16.42,133.47,133.44,4.62277789]
[1768833407417,16.42,133.47,133.44,1.60490056]
[1768833408221,24.68455819,133.47,133.43,1.60490056]
[1768833408400,17.1922329,133.47,133.43,4.62277789]
[1768833408717,17.1922329,133.47,133.43,12.11734387]
[1768833408895,17.1922329,133.47,133.43,4.62277789]
[1768833409319,17.1922329,133.47,133.43,1.60490056]
[1768833409499,17.1922329,133.47,133.43,4.62277789]
[1768833409896,17.1922329,133.47,133.44,1.60490056]
[1768833410407,24.68470835,133.47,133.43,1.60490056]
[1768833411419,0.77645369,133.46,133.42,1.60490056]
[1768833412010,3.79433102,133.46,133.42,1.60490056]